bitfinex/quotes_SOLUSD_20251124
["timestamp","ask_amount","ask_price","bid_price","bid_amount"]
[1764012009475,0.68,137.51,137.5,4.81901016]
[1764012009675,0.68,137.53,137.5,4.81901016]
[1764012009977,0.68,137.53,137.49,30.2749119]
[1764012010865,5.49901016,137.53,137.49,25.45590174]
[1764012011307,0.68,137.52,137.49,25.45590174]
[1764012011477,5.49901016,137.52,137.49,25.45590174]
[1764012011681,5.49901016,137.51,137.48,7.27366382]
[1764012011870,4.81901016,137.49,137.46,0.1]
[1764012012270,0.68,137.48,137.47,7.2740987]
[1764012012565,0.68,137.48,137.46,0.1]
[1764012016799,4.81901016,137.47,137.46,0.1]
[1764012017292,5.49901016,137.47,137.46,0.1]
[1764012018273,0.68,137.47,137.46,0.1]
[1764012019177,3.76748223,137.47,137.46,0.1]
[1764012020184,0.68,137.47,137.46,0.1]
[1764012021691,3.22,137.48,137.46,0.1]
[1764012021988,16.308864,137.49,137.46,0.1]
[1764012021989,6.98748223,137.47,137.46,0.1]
[1764012027401,3.76748223,137.47,137.46,0.1]
[1764012027607,6.98748223,137.47,137.46,0.1]
[1764012029386,3.9,137.47,137.46,0.1]
[1764012033390,6.98748223,137.47,137.46,0.1]
[1764012033601,3.9,137.47,137.46,0.1]
[1764012033804,6.98748223,137.47,137.46,0.1]
[1764012034413,14.26179662,137.47,137.46,0.1]
[1764012035518,30.57066062,137.47,137.46,0.1]
[1764012035717,39.38060554,137.47,137.46,0.1]
[1764012035903,42.29765203,137.47,137.46,0.1]
[1764012038916,30.57066062,137.47,137.46,0.1]
[1764012040100,27.48317839,137.47,137.46,0.1]
[1764012040296,30.57066062,137.47,137.46,0.1]
[1764012040497,23.29634623,137.47,137.46,0.1]
[1764012041415,30.57066062,137.47,137.46,0.1]
[1764012043707,39.38060554,137.47,137.46,0.1]
[1764012044015,30.44817317,137.47,137.46,0.1]
[1764012044212,19.39634623,137.44,137.43,0.1]
[1764012044411,22.61634623,137.44,137.43,0.1]
[1764012044724,23.27634623,137.44,137.43,0.1]
[1764012046311,20.188864,137.44,137.43,0.1]
[1764012046624,23.27634623,137.44,137.43,0.1]
[1764012047401,30.55224844,137.44,137.43,0.1]
[1764012049206,23.27634623,137.44,137.43,0.1]
[1764012049519,20.05634623,137.44,137.43,0.1]
[1764012049716,23.27634623,137.44,137.43,0.1]
[1764012050096,30.55224844,137.44,137.43,0.1]
[1764012050629,23.27634623,137.44,137.43,0.1]
[1764012050808,30.55224844,137.44,137.43,0.1]
[1764012051428,23.27634623,137.44,137.43,0.1]
[1764012051811,30.55224844,137.44,137.43,0.1]
[1764012052327,23.27634623,137.44,137.43,0.1]
[1764012053004,22.61634623,137.44,137.43,0.1]
[1764012053212,23.32634623,137.44,137.43,0.1]
[1764012053524,30.60224844,137.44,137.43,0.1]
[1764012054205,0.71,137.44,137.43,0.1]
[1764012054405,3.22,137.44,137.43,0.81]
[1764012054807,3.22,137.44,137.43,0.1]
[1764012055215,7.01748223,137.44,137.43,0.1]
[1764012055826,3.93,137.44,137.43,0.1]
[1764012056024,7.01748223,137.44,137.43,0.1]
[1764012056703,14.29338444,137.44,137.43,0.1]
[1764012058213,23.32634623,137.44,137.43,0.1]
[1764012059317,30.60224844,137.44,137.43,0.1]
[1764012060855,17.018864,137.47,137.43,0.81]
[1764012061129,3.08748223,137.44,137.43,0.1]
[1764012061814,3.79748223,137.44,137.43,0.1]
[1764012063030,11.07338444,137.44,137.43,0.1]
[1764012063240,19.88332936,137.44,137.43,0.1]
[1764012063817,36.19219336,137.44,137.43,0.1]
[1764012065144,39.10966537,137.44,137.43,0.1]
[1764012066042,36.02218314,137.44,137.43,0.1]
[1764012066245,39.10966537,137.44,137.43,0.1]
[1764012066741,42.32966537,137.44,137.43,0.1]
[1764012067138,39.10966537,137.44,137.43,0.1]
[1764012067345,42.32966537,137.44,137.43,0.1]
[1764012067550,16.308864,137.42,137.41,0.1]
[1764012067841,25.11880892,137.41,137.39,0.2]
[1764012068062,16.308864,137.38,137.37,0.2]
[1764012068228,22.61634623,137.38,137.37,0.2]
[1764012068422,26.24488258,137.38,137.37,0.2]
[1764012068827,22.31488258,137.38,137.37,0.2]
[1764012069025,22.31488258,137.38,137.37,0.91]
[1764012069026,22.61634623,137.38,137.37,0.91]
[1764012069238,19.22697452,137.39,137.37,0.91]
[1764012069526,22.61634623,137.38,137.37,0.91]
[1764012070056,6.30748223,137.38,137.37,0.91]
[1764012070748,6.30748223,137.38,137.37,8.18960981]
[1764012071236,6.30748223,137.38,137.37,0.91]
[1764012071427,3.08748223,137.38,137.37,8.18960981]
[1764012071628,6.30748223,137.38,137.37,8.18960981]
[1764012071936,6.30748223,137.38,137.37,0.91]
[1764012072132,6.30748223,137.38,137.37,8.18960981]
[1764012072342,6.30748223,137.38,137.37,0.91]
[1764012072652,6.30748223,137.38,137.37,8.18960981]
[1764012072831,6.30748223,137.38,137.37,0.91]
[1764012073360,14.29656215,137.38,137.37,0.2]
[1764012073724,21.67649867,137.38,137.37,0.2]
[1764012074541,19.39634623,137.38,137.37,0.91]
[1764012074947,3.22,137.38,137.37,0.91]
[1764012075457,6.30748223,137.38,137.37,0.91]
[1764012075829,13.58656215,137.38,137.37,0.2]
[1764012076045,14.29656215,137.38,137.37,0.2]
[1764012077854,23.10650707,137.38,137.37,0.2]
[1764012078056,26.02525638,137.38,137.37,0.2]
[1764012080181,22.80525638,137.38,137.37,0.2]
[1764012080386,13.58656215,137.38,137.37,0.2]
[1764012080682,15.33094649,137.38,137.37,0.2]
[1764012080884,4.83186657,137.38,137.37,0.2]
[1764012081079,16.308864,137.39,137.37,0.2]
[1764012081383,3.22,137.38,137.37,0.91]
[1764012081678,3.22,137.38,137.37,0.2]
[1764012082783,8.05186657,137.38,137.37,0.2]
[1764012083460,32.30981049,137.38,137.37,0.2]
[1764012083781,34.55834684,137.38,137.37,0.2]
[1764012084368,26.50648027,137.38,137.37,0.2]
[1764012084677,34.55834684,137.38,137.37,0.2]
[1764012084885,35.22834684,137.38,137.37,0.2]
[1764012086383,3.22,137.38,137.37,0.89]
[1764012086688,26.80794392,137.38,137.37,0.89]
[1764012086865,19.97902484,137.38,137.37,0.2]
[1764012087070,24.81089141,137.38,137.37,0.2]
[1764012087472,27.73006674,137.38,137.37,0.2]
[1764012090385,22.89820017,137.38,137.37,0.2]
[1764012090592,27.73006674,137.38,137.37,0.2]
[1764012091689,22.89820017,137.38,137.37,0.2]
[1764012091889,24.81089141,137.38,137.37,0.2]
[1764012094185,24.81089141,137.38,137.37,1e-08]
[1764012094388,8.80994492,137.37,137.36,0.1]
[1764012094593,14.31181149,137.37,137.36,0.1]
[1764012095101,16.75955473,137.37,137.36,0.1]
[1764012095279,21.5914213,137.37,137.36,0.1]
[1764012097302,24.51080968,137.37,137.36,0.1]
[1764012103704,21.5914213,137.37,137.36,0.1]
[1764012104484,19.97955473,137.37,137.36,0.1]
[1764012104687,24.8114213,137.37,137.36,0.1]
[1764012107399,27.73102277,137.37,137.36,0.1]
[1764012108195,27.73102277,137.37,137.36,0.02255082]
[1764012109801,24.8114213,137.37,137.36,0.02255082]
[1764012113185,27.73102277,137.37,137.36,0.02255082]
[1764012114088,27.73102277,137.37,137.35,0.1]
[1764012114089,11.46994491,137.36,137.35,1e-08]
[1764012114405,11.46994491,137.36,137.33,73.44]
[1764012114406,8.80994492,137.35,137.33,73.44]
[1764012114614,21.69367806,137.34,137.33,73.44]
[1764012114815,16.86181149,137.34,137.33,73.44]
[1764012115010,21.69367806,137.34,137.33,73.44]
[1764012115603,22.35367806,137.34,137.33,73.44]
[1764012116420,29.634878,137.34,137.33,73.44]
[1764012118597,8.80994492,137.33,137.32,0.1]
[1764012118797,14.30181149,137.33,137.32,0.1]
[1764012119315,17.22226562,137.33,137.32,0.1]
[1764012120512,19.67212918,137.33,137.32,0.1]
[1764012120819,25.11880892,137.31,137.3,0.1]
[1764012121022,25.11880892,137.31,137.23,0.1]
[1764012121023,16.308864,137.27,137.23,0.1]
[1764012121315,28.33880892,137.26,137.24,0.7]
[1764012121932,28.99880892,137.26,137.23,0.1]
[1764012122136,8.80994492,137.24,137.23,0.1]
[1764012122420,16.86181149,137.24,137.23,0.1]
[1764012122602,24.14831688,137.24,137.23,0.1]
[1764012122942,24.80831688,137.24,137.23,0.1]
[1764012123601,24.80831688,137.24,137.22,0.1]
[1764012123602,26.80831687,137.24,137.22,0.1]
[1764012123814,14.30181149,137.23,137.22,0.1]
[1764012124617,21.58884785,137.23,137.22,0.1]
[1764012124800,16.75698128,137.23,137.22,0.1]
[1764012125017,21.58884785,137.23,137.22,0.1]
[1764012125206,16.308864,137.2,137.19,0.1]
[1764012125398,24.38073057,137.2,137.19,0.8]
[1764012125599,24.38073057,137.2,137.19,0.1]
[1764012126211,24.38073057,137.2,137.19,0.8]
[1764012126820,31.6693603,137.2,137.19,0.1]
[1764012127204,40.47930522,137.2,137.19,0.1]
[1764012127809,45.31117179,137.2,137.19,0.1]
[1764012128499,45.31117179,137.2,137.12,4.83186657]
[1764012128500,8.80994492,137.19,137.15,0.7]
[1764012128707,21.14073057,137.16,137.12,0.7]
[1764012128906,4.83186657,137.14,137.12,0.7]
[1764012129117,28.98075716,137.21,137.13,4.83186657]
[1764012129427,16.308864,137.18,137.14,4.83186657]
[1764012129631,3.24,137.17,137.14,4.83186657]
[1764012129817,3.24,137.17,137.15,0.7]
[1764012130733,8.07186657,137.17,137.15,0.7]
[1764012130916,4.83186657,137.16,137.15,0.7]
[1764012133022,20.93256681,137.16,137.15,0.7]
[1764012133813,21.14073057,137.16,137.15,0.7]
[1764012134018,4.83186657,137.16,137.15,0.7]
[1764012135436,10.53042493,137.17,137.15,0.7]
[1764012135616,3.24,137.19,137.15,5.53186657]
[1764012135820,3.24,137.19,137.15,0.7]
[1764012136119,3.24,137.19,137.16,0.7]
[1764012136633,3.24,137.19,137.16,7.99064889]
[1764012136812,8.07186657,137.19,137.16,7.99064889]
[1764012137012,8.07186657,137.19,137.17,0.7]
[1764012138335,4.83186657,137.18,137.17,0.7]
[1764012139043,15.36108379,137.19,137.17,0.7]
[1764012139242,4.83186657,137.18,137.17,0.7]
[1764012140531,3.10141885,137.18,137.17,0.7]
[1764012140733,16.308864,137.17,137.15,0.7]
[1764012140911,6.34141885,137.16,137.1,7.29394602]
[1764012141110,6.34141885,137.16,137.13,0.7]
[1764012141111,3.10141885,137.14,137.13,0.7]
[1764012141739,3.10141885,137.15,137.13,0.7]
[1764012142416,7.29181857,137.14,137.13,0.7]
[1764012142631,28.62278386,137.14,137.11,0.66]
[1764012142808,3.10141885,137.12,137.11,0.66]
[1764012143011,3.24,137.13,137.11,0.66]
[1764012144636,3.24,137.13,137.11,7.95291681]
[1764012145145,3.24,137.13,137.12,0.66]
[1764012146817,10.53235032,137.13,137.12,0.66]
[1764012147023,6.34141885,137.13,137.12,0.66]
[1764012147432,11.23235032,137.13,137.04,25.53998832]
[1764012147647,3.10141885,137.1,137.05,3.76141885]
[1764012147825,6.34141885,137.09,137.05,0.66]
[1764012148144,3.24,137.09,137.06,0.66]
[1764012148346,3.24,137.09,137.06,3.76141885]
[1764012148521,3.24,137.09,137.06,11.05704813]
[1764012148723,3.24,137.09,137.07,0.66]
[1764012149127,7.29300852,137.12,137.07,0.66]
[1764012149335,3.24,137.14,137.09,3.10141885]
[1764012149751,6.34141885,137.14,137.09,3.10141885]
[1764012150457,13.63334246,137.14,137.1,7.29394602]
[1764012150825,3.24,137.14,137.1,10.39536487]
[1764012151139,6.34141885,137.14,137.1,7.29394602]
[1764012151341,3.24,137.14,137.11,0.54]
[1764012151548,3.24,137.14,137.11,3.64141885]
[1764012151725,6.34141885,137.14,137.11,0.54]
[1764012151925,6.34141885,137.14,137.12,0.54]
[1764012152229,3.24,137.14,137.12,0.54]
[1764012154548,3.24,137.14,137.12,7.83277289]
[1764012154925,6.34141885,137.14,137.12,0.54]
[1764012155345,3.24,137.14,137.12,0.54]
[1764012157834,3.24,137.14,137.11,7.2932115]
[1764012157835,13.6333384,137.14,137.11,0.54]
[1764012158037,13.6333384,137.14,137.12,0.54]
[1764012158038,3.24,137.14,137.12,0.54]
[1764012159642,13.63324615,137.14,137.12,0.54]
[1764012160154,3.10141885,137.13,137.09,10.39579423]
[1764012160456,3.10141885,137.12,137.08,7.83492387]
[1764012160625,3.24,137.11,137.08,7.29492387]
[1764012160825,3.24,137.11,137.09,0.54]
[1764012162047,3.24,137.11,137.09,7.83442701]
[1764012162243,3.24,137.11,137.09,0.54]
[1764012163352,3.24,137.11,137.09,7.83442589]
[1764012164657,3.24,137.13,137.1,3.64141885]
[1764012165159,3.24,137.13,137.1,10.9348441]
[1764012165537,3.24,137.13,137.1,10.3948441]
[1764012165859,3.24,137.13,137.11,0.54]
[1764012166041,3.24,137.13,137.1,10.9348441]
[1764012166230,3.24,137.13,137.1,7.83342525]
[1764012166437,3.24,137.13,137.1,0.54]
[1764012166646,3.24,137.13,137.1,7.2938869]
[1764012166858,3.24,137.13,137.11,0.54]
[1764012167153,3.24,137.13,137.1,7.8338869]
[1764012171562,3.24,137.13,137.1,7.8339173]
[1764012173050,7.98193954,137.14,137.1,7.8339173]
[1764012173250,3.24,137.13,137.1,7.8339173]
[1764012174657,3.24,137.13,137.1,7.2939173]
[1764012174658,6.99141885,137.13,137.1,7.2939173]
[1764012176761,14.2838141,137.13,137.1,7.2939173]
[1764012177745,3.89,137.13,137.1,7.2939173]
[1764012178552,6.99141885,137.13,137.1,7.2939173]
[1764012178866,3.89,137.13,137.1,0.54]
[1764012179245,11.18244367,137.13,137.1,0.54]
[1764012179446,14.28386252,137.13,137.1,0.54]
[1764012179647,14.28386252,137.13,137.1,7.83387878]
[1764012180463,14.28386252,137.13,137.1,7.29387878]
[1764012180981,0.65,137.12,137.09,7.29447808]
[1764012181274,6.34141885,137.11,137.08,0.71]
[1764012181679,3.10141885,137.1,137.06,7.29607471]
[1764012181982,3.10141885,137.09,137.06,0.71]
[1764012182279,3.10141885,137.1,137.06,0.71]
[1764012182984,3.10141885,137.09,137.04,0.71]
[1764012183145,3.24,137.08,137.04,3.81141885]
[1764012183572,3.24,137.08,137.05,0.71]
[1764012184267,3.24,137.08,137.05,3.81141885]
[1764012184665,3.24,137.08,137.06,0.71]
[1764012184856,3.24,137.08,137.07,7.29554242]
[1764012185247,3.24,137.08,137.07,8.00554242]
[1764012185857,3.10141885,137.1,137.07,8.00554242]
[1764012186059,3.75141885,137.1,137.07,8.00554242]
[1764012186258,6.34141885,137.11,137.08,0.71]
[1764012186450,6.34141885,137.11,137.07,7.29554242]
[1764012186451,14.28489751,137.11,137.07,7.29554242]
[1764012186650,6.99141885,137.11,137.07,7.29554242]
[1764012186850,6.99141885,137.11,137.03,21.6313575]
[1764012186851,0.65,137.14,137.09,7.29447808]
[1764012187056,3.89,137.13,137.09,7.29447808]
[1764012187269,6.99141885,137.13,137.09,8.00447808]
[1764012187459,3.24,137.13,137.12,3.10141885]
[1764012187779,0.65,137.14,137.1,0.71]
[1764012187948,3.10141885,137.15,137.1,0.71]
[1764012188149,0.65,137.15,137.1,3.81141885]
[1764012188560,3.89,137.15,137.11,0.71]
[1764012188878,3.89,137.15,137.12,7.29288214]
[1764012189058,10.53133854,137.15,137.08,7.29480889]
[1764012189371,10.53133854,137.15,137.09,0.71]
[1764012189372,3.10141885,137.13,137.09,0.71]
[1764012189878,0.65,137.13,137.09,0.71]
[1764012190455,0.65,137.13,137.09,8.00406864]
[1764012191067,0.65,137.13,137.1,0.71]
[1764012191852,7.94248357,137.13,137.1,0.71]
[1764012192579,11.04390242,137.13,137.1,0.71]
[1764012192748,7.94248357,137.13,137.1,0.71]
[1764012193879,11.04390242,137.13,137.1,0.71]
[1764012194655,3.24,137.12,137.1,8.00377441]
[1764012194866,3.24,137.12,137.1,0.71]
[1764012196672,0.65,137.11,137.07,11.10683235]
[1764012196867,3.75141885,137.11,137.07,0.71]
[1764012197084,3.75141885,137.11,137.06,0.71]
[1764012197383,0.65,137.1,137.06,0.71]
[1764012197885,0.65,137.1,137.06,3.81141885]
[1764012198087,0.65,137.1,137.06,11.10699661]
[1764012198392,0.65,137.1,137.07,0.71]
[1764012198890,7.94394712,137.1,137.07,0.71]
[1764012199359,0.65,137.1,137.07,0.71]
[1764012199670,0.65,137.13,137.08,3.10141885]
[1764012199977,3.24,137.1,137.08,3.10141885]
[1764012200174,0.65,137.13,137.09,11.10589693]
[1764012200379,3.24,137.14,137.1,3.10141885]
[1764012200690,3.24,137.14,137.11,3.10141885]
[1764012200861,0.65,137.17,137.12,3.10141885]
[1764012201060,0.65,137.17,137.12,3.81141885]
[1764012201286,0.65,137.17,137.13,3.81141885]
[1764012201699,0.65,137.17,137.14,0.71]
[1764012202187,0.65,137.17,137.11,0.71]
[1764012202188,3.10141885,137.16,137.11,0.71]
[1764012202392,3.10141885,137.15,137.11,0.71]
[1764012202699,5.51735194,137.16,137.11,5.55735194]
[1764012203192,5.51735194,137.15,137.11,0.71]
[1764012203860,0.67,137.15,137.11,0.71]
[1764012204379,7.96138433,137.15,137.11,8.0031594]
[1764012204586,0.67,137.15,137.11,31.08404645]
[1764012205295,3.24,137.18,137.14,4.84735194]
[1764012205704,3.91,137.18,137.14,4.84735194]
[1764012205994,3.91,137.18,137.15,5.54735194]
[1764012206299,3.91,137.18,137.16,7.29075532]
[1764012206997,8.80994492,137.23,137.17,5.54735194]
[1764012207199,14.32729686,137.23,137.18,4.84735194]
[1764012207398,25.78880892,137.23,137.18,5.54735194]
[1764012207601,0.67,137.23,137.19,5.54735194]
[1764012207991,0.67,137.23,137.2,4.84735194]
[1764012208306,3.91,137.24,137.21,7.28809853]
[1764012209208,3.91,137.24,137.21,12.83545047]
[1764012209508,3.24,137.24,137.21,12.83545047]
[1764012209893,3.24,137.24,137.21,12.13545047]
[1764012210093,0.67,137.23,137.21,12.13545047]
[1764012210305,0.67,137.23,137.21,4.84735194]
[1764012211037,4.84735194,137.22,137.18,4.84735194]
[1764012211222,26.17466835,137.23,137.17,0.7]
[1764012211398,4.84735194,137.21,137.17,0.7]
[1764012211592,4.84735194,137.21,137.16,4.84735194]
[1764012211803,5.51735194,137.2,137.15,4.84735194]
[1764012212285,0.67,137.19,137.16,4.84735194]
[1764012212486,7.28969237,137.18,137.16,4.84735194]
[1764012213392,3.24,137.2,137.16,4.84735194]
[1764012213598,11.19864648,137.2,137.17,0.7]
[1764012214190,11.19864648,137.2,137.17,5.54735194]
[1764012215223,0.67,137.19,137.16,4.84735194]
[1764012215404,10.52864648,137.2,137.16,4.84735194]
[1764012215722,0.67,137.19,137.16,5.54735194]
[1764012216014,0.67,137.19,137.16,4.84735194]
[1764012216517,7.95953041,137.19,137.16,4.84735194]
[1764012216716,7.95953041,137.19,137.15,5.54735194]
[1764012217219,0.67,137.18,137.15,5.54735194]
[1764012217912,0.67,137.18,137.14,4.84735194]
[1764012218120,0.67,137.18,137.14,5.54735194]
[1764012218306,0.67,137.18,137.14,12.83915742]
[1764012218510,0.67,137.18,137.15,4.84735194]
[1764012218709,7.96003314,137.18,137.15,4.84735194]
[1764012219915,7.96003314,137.18,137.16,4.84735194]
[1764012220300,0.67,137.17,137.16,4.84735194]
[1764012220625,0.67,137.17,137.15,4.84735194]
[1764012224127,0.67,137.17,137.16,4.84735194]
[1764012224338,0.67,137.17,137.15,4.84735194]
[1764012224703,0.67,137.17,137.16,4.84735194]
[1764012224905,0.67,137.21,137.16,5.54735194]
[1764012225127,0.67,137.21,137.18,4.84735194]
[1764012225839,0.67,137.21,137.18,5.54735194]
[1764012226213,7.28862973,137.2,137.18,5.54735194]
[1764012226805,7.28862973,137.2,137.18,0.7]
[1764012227013,7.28862973,137.2,137.18,5.54735194]
[1764012227222,7.9583073,137.21,137.18,5.54735194]
[1764012227433,7.9583073,137.21,137.18,0.7]
[1764012227636,7.9583073,137.21,137.18,5.54735194]
[1764012227933,7.4583073,137.21,137.18,5.54735194]
[1764012232121,0.71,137.2,137.16,4.84735194]
[1764012232521,3.24,137.19,137.16,4.84735194]
[1764012232916,3.24,137.19,137.16,5.52735194]
[1764012233122,3.9,137.19,137.16,5.52735194]
[1764012233422,0.66,137.18,137.16,4.84735194]
[1764012235436,10.52960004,137.19,137.16,4.84735194]
[1764012235641,11.18960004,137.19,137.16,4.84735194]
[1764012237316,11.18960004,137.19,137.16,4.02905194]
[1764012239644,3.9,137.19,137.17,4.84735194]
[1764012239817,0.66,137.18,137.15,7.97105042]
[1764012240017,0.66,137.18,137.17,4.84735194]
[1764012240830,0.66,137.18,137.16,4.84735194]
[1764012241615,7.94969816,137.18,137.15,4.84735194]
[1764012242218,3.24,137.19,137.17,4.84735194]
[1764012242439,3.24,137.19,137.18,4.84735194]
[1764012242643,0.66,137.22,137.18,4.84735194]
[1764012242861,0.66,137.23,137.21,4.84735194]
[1764012243165,3.9,137.23,137.21,4.84735194]
[1764012243327,3.9,137.23,137.19,0.68]
[1764012243328,3.9,137.23,137.2,4.84735194]
[1764012243528,7.2875674,137.22,137.2,4.84735194]
[1764012244151,7.9475674,137.22,137.2,4.84735194]
[1764012245029,7.9475674,137.22,137.15,3.24]
[1764012245030,16.308864,137.19,137.12,0.68]
[1764012245236,3.24,137.18,137.14,4.84735194]
[1764012245547,7.2902238,137.17,137.14,4.84735194]
[1764012245735,7.9502238,137.17,137.14,4.84735194]
[1764012247142,0.66,137.16,137.14,4.84735194]
[1764012248341,7.95084334,137.16,137.13,12.13955223]
[1764012248541,7.95084334,137.16,137.13,12.81955223]
[1764012249257,7.95084334,137.16,137.13,5.52735194]
[1764012249749,0.66,137.16,137.13,5.52735194]
[1764012250433,12.79812505,137.16,137.13,0.68]
[1764012250636,4.84735194,137.14,137.1,4.84735194]
[1764012250828,3.24,137.15,137.12,4.84735194]
[1764012251033,3.9,137.15,137.12,4.84735194]
[1764012251231,11.19177178,137.15,137.12,4.84735194]
[1764012251653,11.19177178,137.15,137.11,5.52735194]
[1764012251824,11.19177178,137.15,137.11,12.8206496]
[1764012252431,11.19177178,137.15,137.11,12.5878496]
[1764012253655,7.95183348,137.14,137.11,12.5878496]
[1764012254348,21.81621594,137.13,137.02,50.14216157]
[1764012254551,3.24,137.12,137.07,0.68]
[1764012254751,16.968864,137.11,137.07,5.52735194]
[1764012255246,8.08735194,137.12,137.08,4.84735194]
[1764012255448,0.66,137.11,137.08,4.84735194]
[1764012255959,3.9,137.12,137.09,5.52735194]
[1764012256445,11.19295713,137.12,137.09,5.52735194]
[1764012257048,3.9,137.12,137.09,5.52735194]
[1764012258057,0.66,137.11,137.07,7.29531175]
[1764012258236,0.66,137.11,137.08,4.84735194]
[1764012260259,0.66,137.11,137.07,7.29531175]
[1764012260453,0.66,137.11,137.04,19.548864]
[1764012260454,4.84735194,137.09,137.04,5.52735194]
[1764012260650,3.24,137.09,137.08,4.84735194]
[1764012260852,3.24,137.11,137.08,4.84735194]
[1764012261037,3.9,137.11,137.08,5.52735194]
[1764012261563,3.24,137.11,137.1,4.84735194]
[1764012261868,3.24,137.11,137.09,5.52735194]
[1764012264062,7.29289093,137.12,137.09,5.52735194]
[1764012264063,0.7,137.15,137.1,5.50735194]
[1764012264243,10.53189999,137.14,137.1,5.50735194]
[1764012264574,27.54078992,137.14,137.1,3.76294174]
[1764012264769,0.7,137.13,137.1,3.76294174]
[1764012265456,3.80294174,137.13,137.08,3.10294174]
[1764012265760,12.05504823,137.12,137.07,3.76294174]
[1764012265941,3.24,137.11,137.07,3.76294174]
[1764012266141,3.94,137.11,137.08,0.66]
[1764012266350,11.23359597,137.11,137.08,0.66]
[1764012266539,13.63653771,137.11,137.06,3.10294174]
[1764012266748,3.10294174,137.08,137.04,0.66]
[1764012266956,3.24,137.07,137.04,0.66]
[1764012267156,3.24,137.07,137.04,11.05993688]
[1764012267539,3.24,137.07,137.05,0.66]
[1764012267743,3.24,137.08,137.05,0.66]
[1764012267940,3.94,137.08,137.05,0.66]
[1764012268364,3.94,137.08,137.05,3.76294174]
[1764012268745,3.24,137.08,137.05,10.3994375]
[1764012269041,3.24,137.08,137.06,0.66]
[1764012270050,10.53509198,137.08,137.06,0.66]
[1764012272849,3.24,137.08,137.06,7.95598385]
[1764012273050,3.24,137.08,137.06,0.66]
[1764012274573,10.39751801,137.09,137.06,0.66]
[1764012274777,14.33751801,137.09,137.06,0.66]
[1764012274983,6.84476794,137.14,137.08,3.10294174]
[1764012275157,7.99195267,137.14,137.09,3.10294174]
[1764012275469,3.24,137.13,137.1,3.10294174]
[1764012275983,3.24,137.13,137.1,3.76294174]
[1764012276152,11.09374863,137.16,137.11,3.76294174]
[1764012276351,3.24,137.15,137.11,3.76294174]
[1764012276576,3.24,137.15,137.12,0.66]
[1764012277084,0.7,137.14,137.1,3.76294174]
[1764012277253,3.80294174,137.14,137.1,0.66]
[1764012278076,0.7,137.14,137.1,3.76294174]
[1764012278453,0.7,137.14,137.11,0.66]
[1764012278864,0.7,137.14,137.11,7.95339859]
[1764012279175,0.7,137.14,137.11,7.29339859]
[1764012279363,3.80294174,137.14,137.11,7.29339859]
[1764012279680,11.09484635,137.14,137.1,7.29380856]
[1764012279880,0.7,137.13,137.1,7.29380856]
[1764012280080,0.7,137.13,137.1,7.95380856]
[1764012280453,0.7,137.13,137.1,7.29380856]
[1764012280654,3.80294174,137.13,137.09,23.60318274]
[1764012280876,3.80294174,137.13,137.09,24.26318274]
[1764012281077,0.7,137.12,137.09,24.26318274]
[1764012281374,19.41180574,137.1,137.04,0.66]
[1764012281678,3.10294174,137.08,137.04,0.66]
[1764012282174,3.80294174,137.08,137.04,0.66]
[1764012282354,11.09812161,137.08,137.04,7.95713952]
[1764012282782,11.09812161,137.08,137.05,0.66]
[1764012283278,3.10294174,137.06,137.03,8.05746309]
[1764012283575,0.7,137.07,137.03,8.05746309]
[1764012283757,3.80294174,137.07,137.04,0.66]
[1764012284565,0.7,137.08,137.04,11.05995451]
[1764012285459,3.24,137.08,137.05,0.66]